bitfinex/quotes_BTCUSD_20220307
["timestamp","ask_amount","ask_price","bid_price","bid_amount"]
[1646691792873,2.39840758,38056.0,38051.0,0.065713]
[1646691793075,0.00019601,38055.0,38051.0,0.065713]
[1646691794022,0.409,38056.0,38051.0,0.065713]
[1646691794225,0.00019601,38055.0,38051.0,0.065713]
[1646691795222,0.409,38056.0,38051.0,0.065713]
[1646691795624,0.00019601,38055.0,38051.0,0.065716]
[1646691796526,0.32884006,38051.0,38047.0,0.131411]
[1646691796728,0.05,38051.0,38047.0,0.131411]
[1646691797127,0.00018712,38055.0,38047.0,0.131411]
[1646691797375,0.45888712,38056.0,38047.0,0.131411]
[1646691797579,0.73788481,38056.0,38047.0,0.131411]
[1646691797877,0.00018713,38053.0,38047.0,0.131411]
[1646691798874,1.00311111,38056.0,38047.0,0.131411]
[1646691800476,1.06883211,38056.0,38047.0,0.131411]
[1646691801129,1.00311111,38056.0,38047.0,0.131411]
[1646691801727,0.48243674,38056.0,38047.0,0.131411]
[1646691802125,0.2652263,38056.0,38047.0,0.131411]
[1646691803329,0.3152263,38056.0,38047.0,0.131411]
[1646691803731,0.0011,38057.0,38047.0,0.131411]
[1646691803930,0.00128159,38057.0,38055.0,0.065705]
[1646691804770,0.0011,38057.0,38056.0,0.0630156]
[1646691807375,0.0011,38057.0,38056.0,0.8896556]
[1646691807577,0.0011,38057.0,38056.0,0.9896556]
[1646691807778,0.447,38067.0,38056.0,1.31270753]
[1646691808079,0.0044,38069.0,38060.0,0.8004]
[1646691808277,0.00388055,38070.0,38060.0,0.8004]
[1646691808524,0.00388055,38070.0,38067.0,0.07413112]
[1646691809029,0.00388055,38070.0,38066.0,0.30173004]
[1646691809425,0.00388055,38070.0,38067.0,0.25582709]
[1646691809625,0.00388055,38070.0,38068.0,0.065685]
[1646691809825,0.32388084,38077.0,38068.0,0.165585]
[1646691810027,0.26969353,38078.0,38068.0,0.48946584]
[1646691810028,0.29593353,38078.0,38068.0,0.48946584]
[1646691810232,0.0133,38079.0,38069.0,0.8004]
[1646691810431,0.0133,38079.0,38077.0,0.06154196]
[1646691810631,0.0133,38079.0,38077.0,0.065665]
[1646691811330,0.0133,38079.0,38077.0,0.165565]
[1646691813276,0.0133,38079.0,38077.0,0.49113008]
[1646691813477,0.0133,38079.0,38077.0,0.165565]
[1646691814086,0.0044,38080.0,38079.0,0.4867]
[1646691814679,0.00459637,38080.0,38079.0,0.4867]
[1646691815282,0.00459637,38080.0,38079.0,0.81226508]
[1646691815482,0.00459637,38080.0,38079.0,1.61266508]
[1646691815683,0.0044,38080.0,38079.0,0.81226508]
[1646691817124,0.00459637,38081.0,38080.0,0.4956]
[1646691817927,0.0044,38081.0,38080.0,0.82116508]
[1646691819530,0.241,38090.0,38080.0,0.82116508]
[1646691819531,0.4834,38096.0,38083.0,0.28968632]
[1646691819780,0.7451,38100.0,38083.0,0.28968632]
[1646691819781,0.5413,38098.0,38084.0,0.32875926]
[1646691820176,0.5413,38098.0,38085.0,0.01311]
[1646691820379,0.5413,38098.0,38091.0,0.05647337]
[1646691820577,0.0011,38098.0,38096.0,0.065637]
[1646691821579,0.0011,38098.0,38097.0,0.05497992]
[1646691821779,0.0011,38098.0,38096.0,0.32276193]
[1646691823279,0.0011,38098.0,38097.0,0.24364607]
[1646691824126,0.0011,38098.0,38096.0,0.065637]
[1646691824330,0.00019094,38099.0,38097.0,0.32875926]
[1646691824530,0.00019094,38099.0,38098.0,0.131251]
[1646691825124,1.0346,38111.0,38098.0,0.131251]
[1646691825325,1.0346,38111.0,38102.0,0.0699753]
[1646691825525,0.2364,38111.0,38098.0,0.46001026]
[1646691825726,0.065629,38110.0,38098.0,0.46001026]
[1646691826125,0.065629,38110.0,38098.0,0.32875926]
[1646691826325,0.34470377,38110.0,38098.0,0.32875926]
[1646691826525,0.34470377,38110.0,38097.0,0.26219067]
[1646691826725,0.1,38109.0,38094.0,0.078752]
[1646691826927,0.065644,38101.0,38094.0,0.01311]
[1646691827128,0.24827276,38102.0,38093.0,0.003]
[1646691827129,0.05,38102.0,38093.0,0.003]
[1646691827381,0.05,38102.0,38092.0,0.27506932]
[1646691827579,0.32490002,38109.0,38095.0,0.2528446]
[1646691827782,0.131287,38104.0,38096.0,0.32660568]
[1646691827980,0.00017988,38099.0,38097.0,0.065635]
[1646691828379,0.00017988,38099.0,38098.0,0.0637845]
[1646691828781,0.131268,38110.0,38098.0,0.0637845]
[1646691828980,0.131268,38110.0,38103.0,0.32539532]
[1646691829182,0.05,38109.0,38103.0,0.32539532]
[1646691829384,0.05,38108.0,38103.0,0.32539532]
[1646691829583,0.065631,38108.0,38103.0,0.32539532]
[1646691829786,0.065631,38108.0,38104.0,0.25508257]
[1646691829984,0.4459,38113.0,38105.0,0.32660568]
[1646691830184,0.4459,38113.0,38112.0,0.33182812]
[1646691831228,0.4459,38113.0,38112.0,0.47140767]
[1646691831437,0.00018144,38114.0,38112.0,0.47140767]
[1646691831830,0.010355,38124.0,38112.0,0.47140767]
[1646691832029,0.065608,38123.0,38113.0,0.32660568]
[1646691832228,0.065608,38123.0,38113.0,0.15]
[1646691832431,0.06560598,38126.0,38115.0,0.065605]
[1646691832628,0.06560598,38126.0,38121.0,0.27588573]
[1646691833027,0.06560598,38126.0,38115.0,0.065605]
[1646691833228,0.065601,38126.0,38115.0,0.131196]
[1646691833428,0.13120843,38130.0,38115.0,0.131196]
[1646691833429,0.05,38127.0,38115.0,0.131196]
[1646691833629,0.24344465,38126.0,38115.0,0.131196]
[1646691834332,0.37464971,38126.0,38115.0,0.131196]
[1646691834529,0.37464971,38126.0,38116.0,0.24410043]
[1646691835374,0.47464971,38126.0,38116.0,0.24410043]
[1646691835973,0.00548002,38130.0,38116.0,0.24410043]
[1646691836375,0.00018119,38123.0,38116.0,0.24410043]
[1646691836573,0.06578819,38123.0,38116.0,0.24410043]
[1646691836774,0.402196,38122.0,38112.0,0.01311]
[1646691836977,0.06578819,38123.0,38111.0,0.004]
[1646691836978,1.32218362,38121.0,38111.0,0.004]
[1646691837180,1.32218362,38121.0,38097.0,0.15]
[1646691837181,1.0,38119.0,38098.0,0.32411474]
[1646691837376,1.202596,38120.0,38098.0,0.32411474]
[1646691837377,0.4459,38117.0,38098.0,0.32411474]
[1646691837584,0.4459,38117.0,38089.0,0.82761369]
[1646691837585,0.065643,38112.0,38090.0,0.38975974]
[1646691837785,0.05823602,38104.0,38090.0,0.065645]
[1646691837984,0.065649,38099.0,38089.0,0.0999]
[1646691838180,0.32411474,38103.0,38100.0,0.13129799]
[1646691838181,0.05,38102.0,38100.0,0.13129799]
[1646691838632,0.37411474,38103.0,38100.0,9.799e-05]
[1646691838831,0.131289,38102.0,38100.0,9.799e-05]
[1646691839034,0.37285004,38101.0,38100.0,9.799e-05]
[1646691839233,0.47285004,38101.0,38100.0,9.799e-05]
[1646691839732,0.94070704,38101.0,38100.0,9.799e-05]
[1646691840332,0.53851104,38101.0,38100.0,9.799e-05]
[1646691840531,0.94070704,38101.0,38100.0,9.799e-05]
[1646691840934,1.04070704,38101.0,38100.0,9.799e-05]
[1646691841133,0.09070704,38101.0,38100.0,9.799e-05]
[1646691841534,0.05,38101.0,38100.0,9.799e-05]
[1646691841734,0.517776,38101.0,38100.0,9.799e-05]
[1646691842293,0.617776,38101.0,38100.0,9.799e-05]
[1646691843995,0.627766,38101.0,38100.0,9.799e-05]
[1646691844195,0.632766,38101.0,38100.0,9.799e-05]
[1646691844595,0.402116,38101.0,38100.0,9.799e-05]
[1646691845495,0.467777,38101.0,38100.0,9.799e-05]
[1646691846138,0.517777,38101.0,38100.0,9.799e-05]
[1646691846338,0.567777,38101.0,38100.0,9.799e-05]
[1646691849238,0.1,38101.0,38100.0,9.799e-05]
[1646691849440,0.502116,38101.0,38100.0,9.799e-05]
[1646691849878,0.1,38101.0,38100.0,9.799e-05]
[1646691850080,0.065644,38102.0,38100.0,9.799e-05]
[1646691850278,0.642839,38108.0,38100.0,9.799e-05]
[1646691850876,0.642839,38108.0,38102.0,0.24226204]
[1646691851079,0.708478,38108.0,38102.0,0.24226204]
[1646691851281,0.065637,38105.0,38102.0,0.24226204]
[1646691852079,0.131261,38113.0,38103.0,0.402116]
[1646691852281,0.131261,38113.0,38104.0,0.32016506]
[1646691852680,0.131261,38113.0,38109.0,0.28982906]
[1646691854234,0.065626,38111.0,38109.0,0.28982906]
[1646691854430,0.065626,38111.0,38110.0,0.402116]
[1646691854633,0.44606593,38116.0,38110.0,0.72228106]
[1646691854835,0.00016593,38116.0,38110.0,0.72228106]
[1646691855332,0.871029,38121.0,38110.0,0.72228106]
[1646691855333,0.065609,38120.0,38117.0,0.24665122]
[1646691855531,0.00016593,38116.0,38113.0,0.2539124]
[1646691855731,0.00016593,38116.0,38114.0,0.360836]
[1646691856335,0.06578693,38116.0,38114.0,0.360836]
[1646691856534,0.065621,38116.0,38114.0,0.360836]
[1646691857575,0.065608,38118.0,38114.0,0.360836]
[1646691857776,0.065608,38118.0,38114.0,0.68100106]
[1646691857976,0.00016593,38117.0,38114.0,0.68100106]
[1646691858376,0.00016593,38117.0,38114.0,0.360836]
[1646691858877,0.065608,38118.0,38114.0,0.360836]
[1646691859075,0.00016593,38117.0,38114.0,0.360836]
[1646691860077,0.065608,38118.0,38114.0,0.360836]
[1646691860276,0.00016593,38117.0,38114.0,0.360836]
[1646691860679,0.00016593,38117.0,38114.0,0.68100106]
[1646691861346,0.065608,38118.0,38114.0,0.360836]
[1646691861738,0.065608,38118.0,38114.0,0.68100106]
[1646691861939,0.065608,38118.0,38114.0,0.360836]
[1646691862139,0.065608,38118.0,38114.0,0.68070106]
[1646691862538,0.065608,38118.0,38114.0,0.360536]
[1646691863939,0.06579424,38118.0,38114.0,0.360536]
[1646691864341,0.06579424,38118.0,38117.0,0.32437176]
[1646691864540,0.00018624,38118.0,38117.0,0.72640476]
[1646691864780,0.065606,38123.0,38117.0,0.72640476]
[1646691864980,0.065606,38123.0,38118.0,0.360507]
[1646691865179,0.00018623,38119.0,38118.0,0.360507]
[1646691865379,0.00018623,38119.0,38118.0,0.36018257]
[1646691865979,0.065606,38123.0,38118.0,0.36018257]
[1646691866181,0.065606,38123.0,38119.0,0.32016506]
[1646691866383,0.065606,38123.0,38120.0,0.401999]
[1646691866579,0.165599,38125.0,38120.0,0.401999]
[1646691866981,0.065599,38125.0,38121.0,0.32016506]
[1646691867181,0.065599,38125.0,38122.0,0.360143]
[1646691867382,0.065599,38125.0,38122.0,0.68030806]
[1646691867581,0.00010485,38124.0,38122.0,0.360143]
[1646691868183,0.065599,38129.0,38123.0,0.24526757]
[1646691868385,0.8999,38218.0,38123.0,0.24526757]
[1646691868386,0.036,38135.0,38124.0,0.87211706]
[1646691868643,0.0349,38135.0,38127.0,0.36009]
[1646691868841,0.0349,38135.0,38129.0,0.401892]
[1646691869142,0.0349,38135.0,38131.0,0.36005]
[1646691869340,0.0349,38135.0,38133.0,0.32383278]
[1646691869539,0.0349,38135.0,38125.0,0.02624]
[1646691869540,0.0349,38135.0,38134.0,0.401837]
[1646691871342,0.0349,38135.0,38130.0,0.402031]
[1646691871941,0.0349,38135.0,38130.0,0.66390378]
[1646691872142,0.065589,38134.0,38123.0,0.394179]
[1646691872389,0.06548349,38134.0,38124.0,0.402031]
[1646691873188,0.065289,38134.0,38126.0,0.32764217]
[1646691873385,0.065289,38134.0,38127.0,0.360007]
[1646691873585,0.0001945,38131.0,38127.0,0.360007]
[1646691873785,0.0657885,38131.0,38127.0,0.360007]
[1646691874389,0.065594,38131.0,38127.0,0.360007]
[1646691874687,0.06578281,38131.0,38127.0,0.360007]
[1646691875185,0.00018881,38131.0,38127.0,0.360007]
[1646691875587,0.16559,38134.0,38127.0,0.360007]
[1646691875788,0.00018881,38131.0,38127.0,0.360007]
[1646691876629,0.06578281,38131.0,38127.0,0.360007]
[1646691876829,0.065594,38131.0,38127.0,0.360007]
[1646691877034,0.00018881,38131.0,38127.0,0.360007]
[1646691877432,0.05,38134.0,38127.0,0.360007]
[1646691877631,0.05,38134.0,38122.0,0.215593]
[1646691877833,0.06559,38133.0,38123.0,0.402031]
[1646691878235,0.06559,38133.0,38124.0,0.15]
[1646691878436,0.06559,38133.0,38125.0,0.360038]
[1646691878835,0.27221932,38130.0,38125.0,0.360038]
[1646691879235,0.065594,38131.0,38125.0,0.360038]
[1646691879641,0.1,38134.0,38125.0,0.425627]
[1646691879882,0.1,38134.0,38126.0,0.402031]
[1646691880084,0.05,38134.0,38126.0,0.402031]
[1646691880283,0.29992229,38133.0,38126.0,0.402031]
[1646691880681,0.30002572,38133.0,38126.0,0.402031]
[1646691880882,0.35002572,38133.0,38126.0,0.402031]
[1646691881682,0.34992229,38133.0,38126.0,0.402031]
[1646691881885,0.3501154,38133.0,38126.0,0.402031]
[1646691882783,0.34992229,38133.0,38126.0,0.402031]
[1646691883184,0.3501154,38133.0,38126.0,0.402031]
[1646691884029,0.34992229,38133.0,38126.0,0.402031]
[1646691884233,0.3501154,38133.0,38126.0,0.402031]
[1646691884434,0.065591,38132.0,38126.0,0.402031]
[1646691884732,0.115591,38132.0,38126.0,0.402031]
[1646691885731,0.181182,38132.0,38126.0,0.402031]
[1646691885933,0.00019311,38133.0,38128.0,0.359975]
[1646691886537,0.0349,38135.0,38128.0,0.359975]
[1646691886735,0.0349,38135.0,38134.0,0.401945]
[1646691887880,0.0349,38135.0,38134.0,0.402031]
[1646691888081,0.0349,38135.0,38133.0,0.402031]
[1646691889080,0.0349,38135.0,38133.0,0.552031]
[1646691889282,0.0349,38135.0,38133.0,0.402031]
[1646691890083,0.0349,38135.0,38133.0,0.552031]
[1646691890285,0.0349,38135.0,38133.0,0.402031]
[1646691890682,0.0349,38135.0,38134.0,0.69603764]
[1646691891033,0.0349,38135.0,38134.0,1.05587364]
[1646691892335,0.0349,38135.0,38119.0,0.0999]
[1646691892538,0.05,38134.0,38129.0,0.002]
[1646691892735,0.31565719,38134.0,38129.0,0.002]
[1646691893135,0.402031,38133.0,38129.0,0.002]
[1646691893335,0.065595,38131.0,38129.0,0.002]
[1646691893736,0.0656,38129.0,38117.0,0.13119]
[1646691893935,0.0656,38129.0,38118.0,0.502031]
[1646691894136,0.0656,38129.0,38118.0,0.402031]
[1646691894336,0.0656,38129.0,38120.0,0.360147]
[1646691894536,0.065601,38128.0,38120.0,0.360147]
[1646691894810,0.23289777,38124.0,38122.0,0.401987]
[1646691895008,0.065602,38127.0,38126.0,0.33676445]
[1646691895210,0.3534923,38127.0,38126.0,0.33676445]
[1646691896513,0.3544923,38127.0,38126.0,0.33676445]
[1646691897114,0.3544923,38127.0,38126.0,0.73879545]
[1646691897713,0.2888903,38127.0,38126.0,0.33676445]
[1646691898315,0.2878903,38127.0,38126.0,0.28676445]
[1646691898530,0.05,38128.0,38126.0,0.56102447]
[1646691898735,0.0001897,38133.0,38127.0,0.87282372]
[1646691898929,0.0001897,38133.0,38130.0,0.15]
[1646691899128,0.0001897,38133.0,38131.0,0.35994]
[1646691899528,0.0001897,38133.0,38132.0,0.303291]
[1646691899728,0.0011,38138.0,38132.0,0.303291]
[1646691899729,0.0011,38138.0,38132.0,0.855261]
[1646691899931,0.00018971,38134.0,38133.0,0.359919]
[1646691900132,0.00018971,38134.0,38133.0,0.509919]
[1646691900930,0.0011,38138.0,38133.0,0.509919]
[1646691901131,0.03508971,38135.0,38133.0,0.509919]
[1646691901731,0.03508971,38135.0,38133.0,0.575492]
[1646691902134,0.0349,38135.0,38133.0,0.64859695]
[1646691904083,0.0349,38135.0,38133.0,0.58302395]
[1646691904281,0.0349,38135.0,38133.0,0.509919]
[1646691907832,0.31997616,38134.0,38133.0,0.509919]
[1646691908034,0.31997616,38134.0,38133.0,0.359919]
[1646691912586,0.36997616,38134.0,38133.0,0.359919]
[1646691912787,0.36997616,38134.0,38120.0,0.221723]
[1646691912987,0.36997616,38134.0,38121.0,0.32079272]
[1646691913189,0.36997616,38134.0,38127.0,0.402031]
[1646691913386,0.40135129,38133.0,38128.0,0.359963]
[1646691913635,0.1312,38133.0,38127.0,0.402031]
[1646691913835,0.24173593,38129.0,38127.0,0.402031]
[1646691914034,0.30733393,38129.0,38127.0,0.402031]
[1646691915635,0.35733393,38129.0,38127.0,0.402031]
[1646691916139,0.115598,38129.0,38127.0,0.402031]
[1646691916337,0.065598,38129.0,38127.0,0.402031]
[1646691916535,0.05,38130.0,38127.0,0.402031]
[1646691916737,0.11576559,38133.0,38127.0,0.402031]
[1646691916938,0.11576559,38133.0,38128.0,0.402031]
[1646691917135,0.32497277,38132.0,38127.0,0.402031]
[1646691917398,0.37497277,38132.0,38127.0,0.402031]
[1646691918097,0.37497277,38132.0,38128.0,0.29479269]
[1646691918297,0.37497277,38132.0,38129.0,0.359955]
[1646691919297,0.44056277,38132.0,38129.0,0.359955]
[1646691920499,0.42497277,38132.0,38126.0,0.28676445]
[1646691920704,0.55616277,38132.0,38126.0,0.28676445]
[1646691920902,0.065593,38131.0,38126.0,0.28676445]
[1646691921143,0.065593,38131.0,38127.0,0.402031]
[1646691921353,0.065593,38131.0,38126.0,0.28676445]
[1646691921538,0.065593,38131.0,38127.0,0.402031]
[1646691921539,0.131189,38131.0,38127.0,0.402031]
[1646691921741,0.05,38129.0,38126.0,0.28676445]
[1646691921939,0.05,38129.0,38127.0,0.402031]
[1646691922340,0.115593,38131.0,38127.0,0.402031]
[1646691923042,0.181186,38131.0,38129.0,0.5]
[1646691924641,0.181186,38131.0,38130.0,0.402031]
[1646691924884,0.181186,38131.0,38129.0,0.5]
[1646691925286,0.266776,38140.0,38129.0,0.5]
[1646691925489,0.26849377,38135.0,38131.0,0.5]
[1646691925687,0.29358147,38137.0,38135.0,0.30106267]
[1646691926088,0.0044,38140.0,38135.0,0.30106267]
[1646691926289,0.0044,38140.0,38138.0,0.2747418]
[1646691927689,0.00450346,38140.0,38138.0,0.2747418]
[1646691928286,0.00450346,38140.0,38137.0,0.29729507]
[1646691928535,0.0044,38140.0,38137.0,0.29729507]
[1646691928736,0.00450346,38140.0,38137.0,0.29729507]
[1646691929334,0.00450346,38140.0,38138.0,0.30511761]
[1646691929738,0.0044,38140.0,38138.0,0.30511761]
[1646691929937,0.00450346,38140.0,38137.0,0.29729507]
[1646691930838,0.0044,38140.0,38138.0,0.402031]
[1646691931037,0.0044,38140.0,38138.0,0.24685415]
[1646691931239,0.00459419,38140.0,38138.0,0.24685415]
[1646691932140,0.0044,38140.0,38138.0,0.24685415]
[1646691932386,0.00459419,38140.0,38137.0,0.42844007]
[1646691932886,0.00459419,38140.0,38137.0,0.42444007]
[1646691933289,0.0044,38140.0,38138.0,0.71883734]
[1646691933589,0.00459419,38140.0,38138.0,0.402031]
[1646691933787,0.00459419,38140.0,38138.0,0.71883734]
[1646691934389,0.00459419,38140.0,38138.0,0.73194734]
[1646691934590,0.0011,38150.0,38138.0,0.73194734]
[1646691934791,1.7791,38160.0,38138.0,0.73194734]
[1646691934792,0.0011,38160.0,38149.0,0.15]
[1646691934992,0.0011,38163.0,38149.0,0.15]
[1646691934993,0.0011,38163.0,38159.0,0.15]
[1646691935192,0.00085508,38167.0,38160.0,0.71857534]
[1646691935390,0.00085508,38167.0,38165.0,0.15]
[1646691935590,0.00085508,38167.0,38165.0,0.86851834]
[1646691935791,0.00085508,38167.0,38165.0,0.96851834]
[1646691936038,0.00085508,38167.0,38165.0,0.99475834]
[1646691936440,0.0078,38169.0,38166.0,0.385696]
[1646691936642,0.585974,38173.0,38168.0,0.3]
[1646691936843,0.585974,38173.0,38172.0,0.15]
[1646691936844,0.186314,38173.0,38172.0,0.15]
[1646691937040,0.0022,38179.0,38173.0,0.401624]
[1646691937240,0.0022,38179.0,38176.0,0.15]
[1646691937440,0.0022,38179.0,38176.0,0.82465614]
[1646691937840,0.0022,38179.0,38176.0,0.77465614]
[1646691938039,0.0022,38179.0,38176.0,0.92465614]
[1646691938242,0.00099585,38191.0,38180.0,0.065492]
[1646691938442,0.00099585,38191.0,38190.0,0.23786722]
[1646691938742,0.00099585,38191.0,38190.0,0.67638222]
[1646691940587,0.00099585,38191.0,38190.0,1.05716836]
[1646691941186,0.00099585,38191.0,38190.0,1.15716836]
[1646691941387,0.00099585,38191.0,38190.0,0.84186422]
[1646691941587,0.00369143,38198.0,38194.0,0.05267627]
[1646691941588,0.05,38195.0,38194.0,0.05267627]
[1646691941787,0.05,38195.0,38194.0,0.509175]
[1646691942188,0.001,38211.0,38194.0,0.92447914]
[1646691942391,0.001,38211.0,38204.0,0.551262]
[1646691942588,0.001,38211.0,38204.0,0.651112]
[1646691942791,0.001,38211.0,38204.0,0.501112]
[1646691942989,0.31711963,38211.0,38204.0,0.501112]
[1646691943188,0.001,38211.0,38204.0,0.501112]
[1646691943637,0.001,38211.0,38204.0,0.81641614]
[1646691943837,0.001,38211.0,38204.0,1.06641614]
[1646691944036,0.001,38211.0,38204.0,0.751112]
[1646691944239,0.001,38211.0,38204.0,0.816561]
[1646691944439,0.00019556,38206.0,38204.0,0.501112]
[1646691944640,0.00019556,38206.0,38204.0,0.401262]
[1646691945238,0.00019556,38206.0,38204.0,0.466713]
[1646691945440,0.001,38211.0,38204.0,0.401262]
[1646691945643,0.00019556,38206.0,38204.0,0.401262]
[1646691945838,0.00019556,38206.0,38204.0,0.73792339]
[1646691946540,0.001,38211.0,38204.0,0.401262]
[1646691946940,0.00019556,38206.0,38204.0,0.401262]
[1646691947407,0.00019556,38206.0,38204.0,0.66832723]
[1646691947807,0.001,38211.0,38204.0,0.401262]
[1646691948007,0.00019556,38206.0,38204.0,0.401262]
[1646691949008,0.001,38211.0,38204.0,0.71701947]
[1646691949209,0.00018629,38206.0,38204.0,0.71710947]
[1646691949612,0.00113661,38214.0,38204.0,0.71710947]
[1646691949613,0.00113661,38214.0,38213.0,0.01285481]
[1646691949812,0.00113661,38214.0,38213.0,0.401166]
[1646691950010,0.00113661,38214.0,38213.0,0.65710398]
[1646691950210,0.00113661,38214.0,38213.0,0.401166]
[1646691952643,0.00113661,38214.0,38213.0,0.72893052]
[1646691952939,0.4459,38225.0,38213.0,0.72893052]
[1646691953142,0.8004,38227.0,38214.0,0.31195902]
[1646691953341,0.130897,38231.0,38214.0,0.31195902]
[1646691953544,0.12753327,38234.0,38214.0,0.31195902]
[1646691953545,0.12753327,38234.0,38225.0,0.35795]
[1646691953742,0.12753327,38234.0,38228.0,0.1]
[1646691953940,0.12253327,38234.0,38229.0,0.357909]
[1646691954141,0.12253327,38234.0,38231.0,0.30250464]
[1646691954348,0.0371,38243.0,38233.0,0.1]
[1646691954541,0.0371,38243.0,38234.0,0.93521102]
[1646691954793,0.0371,38243.0,38242.0,0.48863252]
[1646691954993,0.0371,38243.0,38242.0,0.89036052]
[1646691955393,0.0371,38243.0,38242.0,0.651728]
[1646691955595,0.0371,38243.0,38242.0,0.514798]
[1646691955892,0.02271332,38248.0,38246.0,0.401386]
[1646691956091,0.401495,38247.0,38245.0,0.07639999]
[1646691956293,0.02381332,38251.0,38246.0,0.1]
[1646691956493,0.02271332,38248.0,38246.0,0.1]
[1646691956695,0.0011,38251.0,38246.0,0.59271302]
[1646691956696,0.02381332,38251.0,38246.0,0.59271302]
[1646691956896,0.02381332,38251.0,38247.0,0.1]
[1646691957094,0.0011,38251.0,38249.0,0.401495]
[1646691957295,0.001428,38252.0,38250.0,0.76958502]
[1646691957500,0.0022,38255.0,38251.0,0.71343102]
[1646691957700,0.4459,38270.0,38258.0,0.3674557]
[1646691957896,0.4459,38270.0,38258.0,0.407548]
[1646691958295,0.4459,38270.0,38258.0,0.401495]
[1646691958741,0.4459,38270.0,38253.0,0.004]
[1646691958940,0.00071089,38260.0,38256.0,0.065362]
[1646691959143,0.00071089,38260.0,38253.0,0.004]
[1646691959343,0.00071089,38260.0,38254.0,0.35749]
[1646691959543,0.0097,38259.0,38253.0,0.004]
[1646691959739,0.0097,38259.0,38247.0,0.01306]
[1646691959940,0.0097,38259.0,38247.0,0.05]
[1646691960146,0.27014773,38249.0,38247.0,0.401495]
[1646691960343,9.761e-05,38258.0,38246.0,0.1]
[1646691960344,0.06943946,38253.0,38246.0,0.1]
[1646691960543,0.06943946,38253.0,38246.0,0.095]
[1646691960742,0.401495,38257.0,38246.0,0.095]
[1646691960944,0.01610809,38259.0,38242.0,0.01707]
[1646691961246,9.761e-05,38251.0,38246.0,0.1]
[1646691961645,9.761e-05,38251.0,38248.0,0.401495]
[1646691962048,9.761e-05,38251.0,38248.0,0.501495]
[1646691962293,0.32131009,38256.0,38248.0,0.1]
[1646691962491,0.32131009,38256.0,38249.0,0.1]
[1646691962492,0.0001964,38251.0,38249.0,0.1]
[1646691962693,0.0001964,38251.0,38250.0,0.401495]
[1646691962891,0.32102676,38256.0,38248.0,0.1]
[1646691963093,0.26320336,38257.0,38247.0,0.065381]
[1646691963391,0.25947234,38257.0,38247.0,0.065381]
[1646691963592,0.56182052,38257.0,38248.0,9e-05]
[1646691963797,1.451495,38256.0,38248.0,9e-05]
[1646691963994,1.30234818,38255.0,38248.0,9e-05]
[1646691964196,0.35875627,38255.0,38248.0,9e-05]
[1646691964594,0.30234818,38254.0,38248.0,9e-05]
[1646691964896,1.46605627,38254.0,38248.0,9e-05]
[1646691965096,0.8004,38251.0,38248.0,9e-05]
[1646691965297,0.8004,38249.0,38248.0,9e-05]
[1646691965595,0.9577,38249.0,38245.0,0.07639999]
[1646691965795,0.8004,38246.0,38245.0,0.07639999]
[1646691966036,0.8004,38246.0,38236.0,0.130801]
[1646691966238,0.8004,38246.0,38237.0,0.357857]
[1646691966435,0.8004,38246.0,38233.0,0.29212002]
[1646691966436,0.8004,38246.0,38233.0,0.44212002]
[1646691966636,0.8004,38246.0,38234.0,0.70989417]
[1646691966837,0.8004,38246.0,38235.0,0.01307]
[1646691967036,0.8004,38246.0,38236.0,0.357934]
[1646691967939,0.8004,38246.0,38234.0,0.1]
[1646691968138,1.1014925,38246.0,38233.0,0.130808]
[1646691968537,1.1014925,38246.0,38230.0,0.24389]
[1646691968538,0.8004,38240.0,38230.0,0.24389]
[1646691968740,0.8004,38240.0,38231.0,0.401495]
[1646691969139,0.00295138,38249.0,38233.0,0.065411]
[1646691969340,0.8004,38250.0,38237.0,0.130787]
[1646691969538,0.8004,38249.0,38237.0,0.130787]
[1646691969791,0.0029516,38243.0,38230.0,0.01307]
[1646691969991,0.0029516,38243.0,38229.0,0.01307]
[1646691970189,0.8033516,38243.0,38230.0,0.401495]
[1646691970390,0.3010925,38242.0,38230.0,0.551495]
[1646691970595,0.8004,38235.0,38230.0,0.466911]
[1646691970789,0.8004,38235.0,38225.0,0.01307]
[1646691970790,0.401495,38234.0,38228.0,0.00019685]
[1646691970992,0.05,38241.0,38225.0,0.01307]
[1646691970993,0.00295156,38244.0,38232.0,0.30440564]
[1646691971203,0.00295156,38244.0,38225.0,0.01307]
[1646691971390,0.00295156,38244.0,38226.0,0.401495]
[1646691971588,0.3010925,38245.0,38228.0,0.06170756]
[1646691971891,0.1,38248.0,38233.0,0.065411]
[1646691972089,0.57414486,38243.0,38233.0,0.065411]
[1646691972289,0.8004,38242.0,38233.0,0.065411]
[1646691972489,0.8004,38242.0,38229.0,0.32810265]
[1646691972689,0.8004,38242.0,38230.0,0.357995]
[1646691973092,0.8004,38242.0,38233.0,0.30724963]
[1646691973290,0.8004,38242.0,38232.0,0.09424537]
[1646691973291,1.3010925,38242.0,38232.0,0.09424537]
[1646691973540,1.3010925,38242.0,38228.0,0.004]
[1646691973541,0.8004,38236.0,38228.0,0.004]
[1646691973742,0.8004,38234.0,38211.0,0.15]
[1646691973941,0.8004,38232.0,38213.0,0.15]
[1646691974139,0.8004,38230.0,38214.0,0.371485]
[1646691974346,0.3010925,38231.0,38214.0,0.371485]
[1646691974347,0.28086836,38224.0,38218.0,0.15]
[1646691974543,0.8004,38226.0,38214.0,0.01308]
[1646691974743,0.8004,38224.0,38214.0,0.01308]
[1646691974940,0.9504,38222.0,38208.0,0.01307]
[1646691975142,0.3010925,38223.0,38202.0,0.01308]
[1646691975143,0.15,38214.0,38202.0,0.01308]
[1646691975345,0.8004,38210.0,38194.0,0.065466]
[1646691975544,0.23203392,38212.0,38200.0,0.32094365]
[1646691975746,0.1,38215.0,38207.0,0.00078868]
[1646691975944,0.00640809,38217.0,38207.0,0.00078868]
[1646691976147,0.1,38217.0,38207.0,0.00078868]
[1646691976342,0.1,38220.0,38207.0,0.00078868]
[1646691976542,0.26150036,38216.0,38208.0,0.30154823]
[1646691976744,1.1220083,38215.0,38210.0,0.00010289]